bitfinex-derivatives/quotes_BTCF0:USTF0_20240815
["timestamp","ask_amount","ask_price","bid_price","bid_amount"]
[1723710578799,0.411258,58185.0,58184.0,0.41793222]
[1723710579110,0.411258,58185.0,58184.0,0.3668]
[1723710579891,0.325329,58185.0,58184.0,0.3668]
[1723710580695,0.087929,58185.0,58184.0,0.41793222]
[1723710581299,0.087929,58185.0,58184.0,0.3668]
[1723710581912,0.087929,58185.0,58184.0,0.41793222]
[1723710582294,0.087929,58185.0,58184.0,0.41788585]
[1723710583603,0.087929,58185.0,58184.0,0.3668]
[1723710583818,0.087929,58185.0,58184.0,0.41788585]
[1723710584201,0.087929,58185.0,58184.0,0.3668]
[1723710587218,0.002,58185.0,58184.0,0.452731]
[1723710587404,0.002,58185.0,58184.0,0.968331]
[1723710587605,0.00025759,58196.0,58191.0,0.08592]
[1723710587804,0.08617059,58196.0,58195.0,0.3608]
[1723710588811,0.08617059,58196.0,58195.0,0.7216]
[1723710589009,0.09117059,58196.0,58195.0,0.7226]
[1723710590116,0.10002391,58196.0,58195.0,0.7226]
[1723710590610,0.10102391,58196.0,58195.0,0.7226]
[1723710591612,0.10102391,58196.0,58195.0,0.808514]
[1723710593424,0.18693691,58196.0,58195.0,0.7226]
[1723710593620,0.42433691,58196.0,58195.0,0.7226]
[1723710594719,0.42433691,58196.0,58195.0,0.77372901]
[1723710595427,0.42433691,58196.0,58195.0,0.7226]
[1723710596527,0.10102391,58196.0,58195.0,0.7226]
[1723710598924,0.10102391,58196.0,58195.0,0.77374128]
[1723710599523,0.10102391,58196.0,58195.0,0.7226]
[1723710600327,0.18693691,58196.0,58195.0,0.77375206]
[1723710600528,0.93985691,58196.0,58195.0,0.77375206]
[1723710600926,0.42433691,58196.0,58195.0,0.77375206]
[1723710602429,0.42433691,58196.0,58195.0,0.7226]
[1723710603023,0.42433691,58196.0,58195.0,0.31010348]
[1723710603024,0.47582475,58196.0,58195.0,0.31010348]
[1723710603430,1.02576991,58196.0,58195.0,0.22992908]
[1723710603627,0.51024991,58196.0,58195.0,0.22992908]
[1723710604928,0.5789168,58196.0,58195.0,0.001]
[1723710605132,0.9397168,58196.0,58195.0,0.001]
[1723710605325,0.9397168,58196.0,58185.0,0.4335]
[1723710605326,0.085922,58190.0,58189.0,0.05115206]
[1723710605834,0.085928,58186.0,58185.0,0.3608]
[1723710606038,0.171856,58186.0,58185.0,0.3608]
[1723710607641,0.172856,58186.0,58185.0,0.3608]
[1723710608339,0.173856,58186.0,58185.0,0.3678]
[1723710609333,0.087928,58186.0,58185.0,0.3678]
[1723710610834,0.087928,58186.0,58185.0,0.453729]
[1723710612340,0.002,58186.0,58185.0,0.453729]
[1723710615344,0.002,58186.0,58185.0,0.092929]
[1723710615644,0.002,58186.0,58185.0,0.453729]
[1723710616637,0.002,58186.0,58185.0,0.092929]
[1723710616836,0.002,58186.0,58185.0,0.453729]
[1723710618846,0.08592,58191.0,58185.0,0.453729]
[1723710618847,0.0088709,58189.0,58188.0,0.085925]
[1723710619039,0.085922,58190.0,58189.0,0.085923]
[1723710620731,0.086922,58190.0,58189.0,0.085923]
[1723710621346,0.001,58190.0,58189.0,0.085923]
[1723710621536,0.001,58190.0,58189.0,0.16975447]
[1723710621736,0.001,58190.0,58189.0,0.31944435]
[1723710623642,0.001,58190.0,58189.0,0.16975447]
[1723710624043,0.001,58190.0,58189.0,0.25501896]
[1723710624347,0.172844,58190.0,58189.0,0.16928393]
[1723710624552,0.172844,58190.0,58189.0,0.002]
[1723710626137,0.171862,58184.0,58183.0,0.08526449]
[1723710626344,0.171864,58183.0,58182.0,0.08531446]
[1723710626544,0.171868,58182.0,58181.0,0.08531446]
[1723710626853,0.085935,58181.0,58180.0,0.36095148]
[1723710627041,0.085935,58181.0,58180.0,0.52991634]
[1723710627244,0.085935,58181.0,58180.0,0.44626594]
[1723710627550,0.085935,58181.0,58180.0,0.44452472]
[1723710628141,0.085935,58181.0,58180.0,0.59424002]
[1723710628346,0.085935,58181.0,58180.0,0.60024002]
[1723710628542,0.086935,58181.0,58180.0,0.60024002]
[1723710628853,0.086935,58181.0,58180.0,0.59980846]
[1723710629052,0.086935,58181.0,58180.0,0.59980571]
[1723710629353,0.086935,58181.0,58180.0,0.68512854]
[1723710629547,0.086935,58181.0,58180.0,0.5166664]
[1723710629746,0.087935,58181.0,58180.0,0.36795148]
[1723710633050,0.09706104,58181.0,58180.0,0.36795148]
[1723710635057,0.09706104,58181.0,58180.0,0.45327314]
[1723710635257,0.09706104,58181.0,58180.0,0.36795148]
[1723710635649,0.09706104,58181.0,58180.0,0.5370784]
[1723710636150,0.09706104,58181.0,58180.0,4.39237607]
[1723710636549,0.09706104,58181.0,58180.0,4.30918615]
[1723710636755,0.09706104,58181.0,58180.0,4.30682189]
[1723710637661,0.09706104,58181.0,58180.0,4.30688764]
[1723710637958,0.09706104,58181.0,58180.0,4.45659917]
[1723710638157,0.09706104,58181.0,58180.0,4.4566017]
[1723710638352,0.09706104,58181.0,58180.0,4.30688764]
[1723710638761,0.09706104,58181.0,58180.0,0.53624869]
[1723710638961,0.18299604,58181.0,58180.0,0.53624869]
[1723710639265,0.18299604,58181.0,58180.0,0.45324953]
[1723710640064,0.09706104,58181.0,58180.0,0.45324953]
[1723710641254,0.002,58181.0,58180.0,0.45324953]
[1723710641459,0.13740963,58192.0,58184.0,0.08593]
[1723710641657,0.22332963,58192.0,58191.0,0.0511518]
[1723710641859,0.17184,58191.0,58190.0,0.0511518]
[1723710642164,0.13738901,58191.0,58189.0,0.0511518]
[1723710642460,0.17184,58191.0,58190.0,0.05114975]
[1723710642668,0.22330901,58191.0,58190.0,0.05114975]
[1723710642959,0.085922,58190.0,58186.0,0.06820268]
[1723710643157,0.05146995,58189.0,58188.0,0.05115343]
[1723710643356,0.171852,58187.0,58186.0,0.05115343]
[1723710643563,0.2233245,58187.0,58186.0,0.05115343]
[1723710643963,0.4607245,58187.0,58186.0,0.05115343]
[1723710644162,0.171856,58186.0,58185.0,0.00516537]
[1723710645052,0.171856,58186.0,58179.0,0.00025777]
[1723710645053,0.5156,58185.0,58179.0,0.00025777]
[1723710645257,0.171888,58175.0,58174.0,0.3608]
[1723710646163,0.17203926,58175.0,58174.0,0.3608]
[1723710646357,0.085951,58170.0,58169.0,0.00025777]
[1723710646560,0.409302,58170.0,58169.0,0.00025777]
[1723710646762,0.925022,58170.0,58169.0,0.00025777]
[1723710647565,0.409302,58170.0,58169.0,0.00025777]
[1723710647765,0.409302,58170.0,58169.0,0.36305777]
[1723710647766,0.172902,58170.0,58169.0,0.36305777]
[1723710647963,0.173902,58170.0,58169.0,0.37005777]
[1723710648581,0.1829792,58170.0,58169.0,0.37005777]
[1723710649169,0.0970282,58170.0,58169.0,0.37005777]
[1723710650167,0.0970282,58170.0,58169.0,0.45601077]
[1723710652773,0.0970282,58170.0,58169.0,0.54491077]
[1723710652979,0.0970282,58170.0,58169.0,0.45895777]
[1723710655182,0.4203792,58170.0,58169.0,0.37005777]
[1723710656574,0.9360992,58170.0,58169.0,0.37005777]
[1723710656881,0.9360992,58170.0,58169.0,0.35889528]
[1723710657073,0.085965,58161.0,58160.0,0.4522]
[1723710658173,0.086965,58161.0,58160.0,0.545166]
[1723710658779,0.086965,58161.0,58160.0,0.544166]
[1723710659486,0.087965,58161.0,58160.0,0.544166]
[1723710660581,0.086965,58161.0,58160.0,0.4522]
[1723710660777,0.087965,58161.0,58160.0,0.4522]
[1723710661180,0.087965,58161.0,58160.0,0.538166]
[1723710661783,0.086965,58161.0,58160.0,0.538166]
[1723710663486,0.08596,58165.0,58164.0,0.085959]
[1723710665278,0.08696,58165.0,58164.0,0.085959]
[1723710665891,0.08696,58165.0,58164.0,0.446759]
[1723710666787,0.08596,58165.0,58164.0,0.446759]
[1723710666978,0.08696,58165.0,58164.0,0.446759]
[1723710667181,0.08796,58165.0,58164.0,0.446759]
[1723710668592,0.08796,58165.0,58164.0,0.3608]
[1723710670287,0.08696,58165.0,58164.0,0.3608]
[1723710670489,0.25988,58165.0,58164.0,0.3608]
[1723710670797,0.35428,58165.0,58164.0,0.3608]
[1723710670983,0.35328,58165.0,58164.0,0.3608]
[1723710671481,0.25888,58165.0,58164.0,0.3608]
[1723710671686,0.17292,58165.0,58164.0,0.3608]
[1723710673288,0.17192,58165.0,58164.0,0.3608]
[1723710673691,0.08996,58165.0,58164.0,0.3608]
[1723710674087,0.08596,58165.0,58164.0,0.3608]
[1723710674287,0.05171909,58166.0,58165.0,0.085959]
[1723710674484,0.05161258,58175.0,58165.0,0.75316]
[1723710674684,0.00015126,58175.0,58174.0,0.446746]
[1723710675401,0.08609526,58175.0,58174.0,0.97312242]
[1723710675692,0.05146132,58180.0,58174.0,1.71767942]
[1723710675693,0.00025777,58180.0,58174.0,1.71767942]
[1723710675901,0.05146132,58185.0,58179.0,0.3608]
[1723710676093,0.08593,58185.0,58182.0,0.085934]
[1723710676395,0.08593,58185.0,58184.0,0.3608]
[1723710676600,0.09491604,58185.0,58184.0,0.3608]
[1723710677196,0.00025777,58190.0,58184.0,0.3608]
[1723710677394,0.014,58185.0,58184.0,0.446731]
[1723710677694,0.02,58185.0,58184.0,0.446731]
[1723710678291,0.02,58185.0,58184.0,0.540331]
[1723710678493,0.019,58185.0,58184.0,0.540331]
[1723710679285,0.013,58185.0,58184.0,0.540331]
[1723710680286,0.021,58185.0,58184.0,1.541862]
[1723710680487,0.00025777,58190.0,58184.0,1.61943194]
[1723710680687,0.05146132,58208.0,58200.0,0.085907]
[1723710680900,0.5982,58209.0,58202.0,0.3608]
[1723710680901,0.59956,58209.0,58202.0,0.3608]
[1723710681091,0.085901,58205.0,58202.0,0.3608]
[1723710681288,0.60750501,58209.0,58202.0,0.446703]
[1723710681796,0.085902,58204.0,58202.0,0.446703]
[1723710682188,0.085896,58208.0,58202.0,0.3608]
[1723710682495,0.37010501,58209.0,58202.0,0.3608]
[1723710682496,0.37010501,58209.0,58206.0,0.085897]
[1723710682697,0.085897,58207.0,58206.0,0.085897]
[1723710684091,0.099897,58207.0,58206.0,0.086897]
[1723710684498,0.027,58207.0,58206.0,0.087897]
[1723710691101,0.00025759,58211.0,58210.0,0.085892]
[1723710691300,0.00025759,58211.0,58210.0,0.446692]
[1723710693308,0.00625759,58211.0,58210.0,0.447692]
[1723710693900,0.00225759,58211.0,58210.0,0.446692]
[1723710694098,0.00225759,58211.0,58210.0,0.447692]
[1723710698708,0.00225759,58211.0,58210.0,0.963052]
[1723710698897,0.3608,58222.0,58221.0,0.085876]
[1723710699099,0.00926246,58226.0,58221.0,0.3608]
[1723710699306,0.085863,58230.0,58229.0,0.085863]
[1723710699509,0.085863,58230.0,58229.0,0.446663]
[1723710699808,0.085863,58230.0,58229.0,0.3608]
[1723710701108,0.085863,58230.0,58229.0,0.3618]
[1723710703114,0.171726,58230.0,58229.0,0.3618]
[1723710704510,0.085863,58230.0,58229.0,0.3618]
[1723710709423,0.085863,58230.0,58229.0,0.001]
[1723710709618,0.085863,58230.0,58229.0,0.3618]
[1723710711010,0.085863,58230.0,58229.0,0.001]
[1723710711412,0.085863,58230.0,58229.0,0.3618]
[1723710712107,0.00935387,58231.0,58229.0,0.3618]
[1723710712417,0.085852,58238.0,58236.0,0.085853]
[1723710712714,0.085852,58238.0,58237.0,0.4558]
[1723710714107,0.090852,58238.0,58237.0,0.542653]
[1723710714718,0.10000834,58238.0,58237.0,0.542653]
[1723710714917,0.10000834,58238.0,58237.0,0.4568]
[1723710715422,0.10000834,58238.0,58237.0,0.4578]
[1723710716021,0.18586034,58238.0,58237.0,0.3628]
[1723710716905,0.40630528,58238.0,58237.0,0.19104943]
[1723710717332,0.40630557,58238.0,58237.0,0.002]
[1723710717917,0.40630576,58238.0,58237.0,0.002]
[1723710719013,0.32045376,58238.0,58237.0,0.002]
[1723710719215,0.32045376,58238.0,58237.0,0.087853]
[1723710720918,0.31254283,58238.0,58237.0,0.087853]
[1723710721312,0.2128151,58238.0,58237.0,0.087853]
[1723710722725,0.2986671,58238.0,58237.0,0.002]
[1723710722915,0.41855633,58238.0,58237.0,0.002]
[1723710723426,0.33270433,58238.0,58237.0,0.002]
[1723710724721,0.17174,58225.0,58224.0,0.00025777]
[1723710724925,0.17174,58225.0,58224.0,0.06819645]
[1723710725123,0.17174,58225.0,58224.0,0.00025777]
[1723710726032,0.17174,58225.0,58224.0,0.00425777]
[1723710726323,0.17174,58225.0,58224.0,0.01125777]
[1723710727023,0.53254,58225.0,58224.0,0.00725777]
[1723710728030,0.53254,58225.0,58224.0,0.00425777]
[1723710728926,0.53354,58225.0,58224.0,0.00125777]
[1723710729324,0.09609663,58225.0,58224.0,0.00125777]
[1723710729637,0.085863,58230.0,58224.0,0.06919645]
[1723710729638,0.05139112,58230.0,58224.0,0.06919645]
[1723710729826,0.13723714,58240.0,58229.0,0.68253329]
[1723710730034,0.05138814,58248.0,58239.0,0.7216]
[1723710730328,0.05138814,58254.0,58249.0,0.085835]
[1723710730528,0.085827,58254.0,58253.0,0.3608]
[1723710732435,0.090827,58254.0,58253.0,0.3618]
[1723710732740,0.005,58254.0,58253.0,0.447629]
[1723710733145,0.005,58254.0,58253.0,0.5165096]
[1723710733441,0.005,58254.0,58253.0,0.448629]
[1723710736551,0.090827,58254.0,58253.0,0.3628]
[1723710738244,0.090827,58254.0,58253.0,0.448629]
[1723710738940,0.005,58254.0,58253.0,0.448629]
[1723710742951,0.005,58254.0,58253.0,0.3628]
[1723710743151,1.366627,58254.0,58245.0,0.0678806]
[1723710743358,0.085845,58242.0,58240.0,0.1548806]
[1723710743647,0.08585,58239.0,58238.0,0.00025752]
[1723710743851,0.08585,58239.0,58238.0,0.08610852]
[1723710745250,0.08685,58239.0,58238.0,0.08610852]
[1723710748147,0.001,58239.0,58238.0,0.08610852]
[1723710748455,0.001,58239.0,58238.0,0.17420852]
[1723710751353,0.001,58239.0,58238.0,0.24208912]
[1723710751556,0.001,58239.0,58238.0,0.17420852]
[1723710751750,0.1829,58253.0,58238.0,0.17420852]
[1723710751751,0.05138814,58268.0,58256.0,0.085824]
[1723710751952,0.05138814,58279.0,58267.0,0.7216]
[1723710752152,0.085795,58276.0,58275.0,0.3608]
[1723710752460,0.00939689,58280.0,58275.0,0.3608]
[1723710752650,0.085791,58279.0,58275.0,0.3608]
[1723710752957,0.085792,58278.0,58275.0,0.3608]
[1723710753148,0.085792,58278.0,58276.0,0.085795]
[1723710754252,0.090792,58278.0,58276.0,0.085795]
[1723710754464,0.005,58278.0,58277.0,0.085794]
[1723710755049,0.0259544,58284.0,58283.0,0.085785]
[1723710755262,0.0259544,58284.0,58283.0,0.446585]
[1723710756755,0.0259544,58284.0,58283.0,0.447585]
[1723710757466,0.0259544,58284.0,58283.0,0.448585]
[1723710757467,0.0309544,58284.0,58283.0,0.448585]
[1723710758161,0.085757,58303.0,58298.0,0.085762]
[1723710758361,0.085757,58303.0,58302.0,0.3608]
[1723710758362,0.00917821,58303.0,58302.0,0.3608]
[1723710758577,0.085755,58303.0,58302.0,0.3608]
[1723710758958,1.08607,58303.0,58302.0,0.3608]
[1723710759262,0.085755,58303.0,58302.0,0.3608]
[1723710759469,1.08607,58303.0,58302.0,0.3608]
[1723710759765,0.171522,58299.0,58298.0,0.001]
[1723710760064,0.171532,58296.0,58295.0,0.00025729]
[1723710760263,0.085766,58296.0,58295.0,0.00025729]
[1723710760451,0.171532,58296.0,58295.0,0.00025729]
[1723710760656,0.085766,58296.0,58295.0,0.00025729]
[1723710761265,0.086766,58296.0,58295.0,0.00125729]
[1723710761663,0.172532,58296.0,58295.0,0.00125729]
[1723710761967,0.086766,58296.0,58295.0,0.00125729]
[1723710762152,0.172532,58296.0,58295.0,0.00125729]
[1723710762357,0.086766,58296.0,58295.0,0.00225729]
[1723710762668,0.172532,58296.0,58295.0,0.00225729]
[1723710764553,1.087132,58296.0,58295.0,0.00225729]
[1723710764864,1.54300428,58296.0,58295.0,2.9e-07]
[1723710765558,1.62877028,58296.0,58295.0,2.9e-07]
[1723710765770,1.63277028,58296.0,58295.0,2.9e-07]
[1723710766165,0.257319,58291.0,58290.0,5.8e-07]
[1723710766362,0.855519,58291.0,58290.0,5.8e-07]
[1723710766570,1.770199,58291.0,58290.0,5.8e-07]
[1723710767458,1.772199,58291.0,58290.0,5.8e-07]
[1723710768461,1.774199,58291.0,58290.0,5.8e-07]
[1723710771174,0.25734,58286.0,58285.0,8.7e-07]
[1723710771368,0.61814,58286.0,58285.0,8.7e-07]
[1723710771574,1.53286,58286.0,58285.0,8.7e-07]
[1723710771776,1.61864,58286.0,58285.0,8.7e-07]
[1723710772166,1.62264,58286.0,58285.0,8.7e-07]
[1723710772666,1.62464,58286.0,58285.0,0.00100087]
[1723710773063,1.62764,58286.0,58285.0,0.00200087]
[1723710774378,1.63688076,58286.0,58285.0,0.00200087]
[1723710775376,1.6882689,58286.0,58285.0,0.00200087]
[1723710776479,1.63688076,58286.0,58285.0,0.00200087]
[1723710776673,1.55110076,58286.0,58285.0,0.00200087]
[1723710776875,1.15110076,58286.0,58285.0,0.00200087]
[1723710777667,0.63638076,58286.0,58285.0,0.00200087]
[1723710781485,0.68763226,58286.0,58285.0,0.00200087]
[1723710782288,0.63638076,58286.0,58285.0,0.00200087]
[1723710783380,0.27558076,58286.0,58285.0,0.00200087]
[1723710785183,0.18980076,58286.0,58285.0,0.00200087]
[1723710785378,0.10402076,58286.0,58285.0,0.00200087]
[1723710787000,0.01824076,58286.0,58285.0,0.08778287]
[1723710787488,0.01424076,58286.0,58285.0,0.08778287]
[1723710787895,0.005,58286.0,58285.0,0.08778287]
[1723710788088,0.005,58286.0,58285.0,0.16798287]
[1723710788791,0.085768,58295.0,58294.0,0.085769]
[1723710789092,0.085762,58299.0,58298.0,0.085763]
[1723710790186,0.00722272,58300.0,58299.0,0.085761]
[1723710790383,0.0002557,58301.0,58300.0,0.08576]
[1723710790585,0.0002557,58301.0,58300.0,0.16596]
[1723710791192,0.0860137,58301.0,58300.0,0.16596]
[1723710791798,0.0002557,58301.0,58300.0,0.16596]
[1723710792487,0.00763965,58301.0,58300.0,0.16596]
[1723710792690,0.0002557,58301.0,58300.0,0.16696]
[1723710792897,0.0002557,58301.0,58298.0,0.001]
[1723710793089,0.085766,58296.0,58295.0,0.1674]
[1723710794491,0.09324018,58296.0,58295.0,0.1684]
[1723710795697,0.09424018,58296.0,58295.0,0.1694]
[1723710796200,0.086766,58296.0,58295.0,0.255167]
[1723710796795,0.001,58296.0,58295.0,0.255167]
[1723710798193,0.086766,58296.0,58295.0,0.1694]
[1723710798700,0.172532,58296.0,58295.0,0.002]
[1723710801994,0.086766,58296.0,58295.0,0.002]
[1723710806608,0.172532,58296.0,58295.0,0.002]
[1723710808008,0.086766,58296.0,58295.0,0.002]
[1723710808198,0.172532,58296.0,58295.0,0.002]
[1723710809205,0.172532,58296.0,58290.0,0.05075946]
[1723710809206,1.2764,58296.0,58290.0,0.05075946]
[1723710809405,0.171548,58290.0,58289.0,0.05075946]
[1723710809605,0.171554,58288.0,58287.0,0.05075946]
[1723710809905,0.171558,58287.0,58286.0,0.41155946]
[1723710810409,0.085779,58287.0,58286.0,0.41155946]
[1723710811414,0.171558,58287.0,58286.0,0.41155946]
[1723710812005,0.257337,58287.0,58286.0,0.41155946]
[1723710812205,0.25734,58286.0,58285.0,8.7e-07]
[1723710812806,0.30866933,58286.0,58285.0,8.7e-07]
[1723710813414,0.08678,58286.0,58285.0,0.05076033]
[1723710813717,0.13810851,58286.0,58285.0,8.7e-07]
[1723710814514,0.25934,58286.0,58285.0,0.00300087]
[1723710814710,0.22488851,58286.0,58285.0,0.00300087]
[1723710814902,0.17356,58286.0,58285.0,0.00300087]
[1723710815306,0.08778,58286.0,58285.0,0.00200087]
[1723710815614,0.13911642,58286.0,58285.0,0.00200087]
[1723710815814,0.08778,58286.0,58285.0,0.00200087]
[1723710816217,0.14011642,58286.0,58285.0,8.7e-07]
[1723710816815,0.08878,58286.0,58285.0,0.00100087]
[1723710818912,0.08878,58286.0,58285.0,0.36180087]
[1723710819117,0.003,58286.0,58285.0,0.44758287]
[1723710820416,0.002,58286.0,58285.0,0.44658287]
[1723710820621,0.003,58286.0,58285.0,0.44658287]
[1723710820921,0.003,58286.0,58285.0,0.96130287]
[1723710821121,0.001,58286.0,58285.0,0.96230287]
[1723710821824,0.001,58286.0,58285.0,0.44658287]
[1723710822029,0.08678,58286.0,58285.0,0.36280087]
[1723710823538,0.17256,58286.0,58285.0,0.36280087]
[1723710823831,0.08678,58286.0,58285.0,0.36280087]
[1723710825831,0.08678,58286.0,58285.0,0.44858287]
[1723710830627,0.08678,58286.0,58285.0,0.36280087]
[1723710832440,0.17256,58286.0,58285.0,0.36280087]
[1723710832645,0.17256,58286.0,58285.0,0.43060993]
[1723710833231,0.08678,58286.0,58285.0,0.43060993]
[1723710833530,0.17256,58286.0,58285.0,0.43060993]
[1723710833843,0.08678,58286.0,58285.0,0.36280087]
[1723710834032,0.17256,58286.0,58285.0,0.36280087]
[1723710834234,0.08678,58286.0,58285.0,0.43060993]
[1723710834438,0.08678,58286.0,58285.0,0.36280087]
[1723710834928,0.08678,58286.0,58285.0,0.43060993]
[1723710835323,0.08678,58286.0,58285.0,0.36280087]
[1723710838535,0.08678,58286.0,58285.0,0.44858287]
[1723710838845,0.08678,58286.0,58285.0,0.53333277]
[1723710842148,0.08678,58286.0,58285.0,0.44858287]
[1723710842444,0.001,58286.0,58285.0,0.44858287]
[1723710842634,0.001,58286.0,58285.0,0.53334982]
[1723710842835,0.08678,58286.0,58285.0,0.44858287]
[1723710844237,0.08678,58286.0,58285.0,0.59802806]
[1723710844438,0.08678,58286.0,58285.0,0.53334982]
[1723710844640,0.08678,58286.0,58285.0,0.44858287]
[1723710844936,0.25834,58286.0,58285.0,0.36280087]
[1723710845137,0.30969602,58286.0,58285.0,0.35903872]
[1723710845436,0.25834,58286.0,58285.0,0.42692742]
[1723710845643,0.25834,58286.0,58285.0,0.35903872]
[1723710845934,0.25834,58286.0,58285.0,0.33360873]
[1723710846539,0.49574,58286.0,58285.0,0.33360873]
[1723710846838,0.171564,58285.0,58284.0,0.0678887]
[1723710847037,0.171564,58285.0,58282.0,0.0678887]
[1723710847038,0.0758,58285.0,58282.0,0.0678887]
[1723710847352,0.085788,58281.0,58280.0,0.36105729]
[1723710848643,0.171576,58281.0,58280.0,0.36105729]
[1723710849642,0.17934112,58281.0,58280.0,0.36105729]
[1723710849944,0.17934112,58281.0,58280.0,0.36605729]
[1723710850242,0.26512912,58281.0,58280.0,0.07318295]
[1723710850447,0.59155185,58281.0,58280.0,0.00025729]
[1723710850747,0.18034112,58281.0,58280.0,0.07618295]
[1723710850947,0.18034112,58281.0,58280.0,0.00825729]
[1723710851150,0.23175185,58281.0,58280.0,0.00825729]
[1723710851351,0.18034112,58281.0,58280.0,0.00025729]
[1723710851540,0.085792,58278.0,58277.0,0.06808415]
[1723710852048,0.085792,58278.0,58277.0,0.00015849]
[1723710852049,0.171584,58278.0,58277.0,0.00015849]
[1723710852553,0.085792,58278.0,58277.0,0.00015849]
[1723710853048,0.085792,58278.0,58277.0,0.07425849]
[1723710854147,0.085792,58278.0,58277.0,0.07725849]
[1723710854841,0.085792,58278.0,58277.0,0.16505149]
[1723710855350,0.085792,58278.0,58277.0,0.08025849]
[1723710855539,0.085792,58278.0,58277.0,0.00615849]
[1723710856448,0.171584,58278.0,58277.0,0.00615849]
[1723710856952,0.171584,58278.0,58277.0,0.07408152]
[1723710857142,0.171586,58277.0,58276.0,0.31644149]
[1723710857538,0.686386,58277.0,58276.0,0.31644149]
[1723710857838,0.73777417,58277.0,58276.0,0.31644149]
[1723710858238,0.73795091,58277.0,58276.0,0.31644149]
[1723710858449,0.68656274,58277.0,58276.0,0.31644149]
[1723710858657,0.68656274,58277.0,58276.0,0.3753789]
[1723710859354,0.17176274,58277.0,58276.0,0.3753789]
[1723710859652,0.68656274,58277.0,58276.0,0.3753789]
[1723710860656,0.77235574,58277.0,58276.0,0.3753789]
[1723710861150,0.77235574,58277.0,58276.0,0.008]
[1723710862260,1.13315574,58277.0,58276.0,0.008]
[1723710863756,0.61835574,58277.0,58276.0,0.008]
[1723710864051,0.61835574,58277.0,58276.0,0.00339814]
[1723710864253,0.171598,58273.0,58272.0,0.0511947]
[1723710864455,0.171598,58273.0,58272.0,0.00025729]
[1723710865859,0.171598,58273.0,58272.0,0.00725729]
[1723710867162,0.172598,58273.0,58272.0,0.01625729]
[1723710868157,0.18018316,58273.0,58272.0,0.01625729]
[1723710870252,0.09438416,58273.0,58272.0,0.0671947]
[1723710870457,0.18018316,58273.0,58272.0,0.01625729]
[1723710870758,0.18018316,58273.0,58272.0,0.0671947]
[1723710872555,0.18018316,58273.0,58272.0,0.01625729]
[1723710873059,0.41758316,58273.0,58272.0,0.01625729]
[1723710873762,0.41758316,58273.0,58272.0,0.06709815]
[1723710874451,0.41758316,58273.0,58272.0,0.01625729]
[1723710876657,0.46890774,58273.0,58272.0,0.01625729]
[1723710877262,0.24598516,58273.0,58262.0,0.08476695]
[1723710877463,0.085822,58258.0,58257.0,0.08476695]
[1723710877666,0.00017674,58258.0,58255.0,0.08476695]
[1723710877863,0.684025,58256.0,58251.0,0.0799]
[1723710878063,0.17166,58252.0,58251.0,0.0799]
[1723710878271,0.171664,58251.0,58250.0,0.0022101]
[1723710878460,0.171664,58251.0,58250.0,0.05308768]
[1723710879373,0.171676,58247.0,58246.0,0.04287334]
[1723710879671,0.409076,58247.0,58246.0,0.00025729]
[1723710880668,0.409076,58247.0,58246.0,0.00425729]
[1723710880871,0.171694,58241.0,58240.0,0.0793]
[1723710881167,0.32338964,58241.0,58240.0,0.0793]
[1723710881366,0.08598964,58241.0,58240.0,0.0793]
[1723710882386,0.77103664,58241.0,58235.0,0.00017386]
[1723710882569,0.085854,58236.0,58235.0,0.00017386]
[1723710884177,0.08585,58239.0,58235.0,0.00017386]
[1723710884362,0.001,58236.0,58235.0,0.00017386]
[1723710884866,0.001,58236.0,58235.0,0.08602886]
[1723710885268,0.001,58236.0,58235.0,0.09002886]
[1723710885869,0.001,58236.0,58235.0,0.08602886]
[1723710886173,0.085853,58237.0,58235.0,0.08902886]
[1723710886376,0.001,58236.0,58235.0,0.09002886]
[1723710886674,0.001,58236.0,58235.0,0.45082886]
[1723710887262,0.00040016,58241.0,58240.0,0.085848]
[1723710887464,0.085841,58245.0,58243.0,0.085842]
[1723710887674,0.085841,58245.0,58244.0,0.077]
[1723710888376,0.08598208,58245.0,58244.0,0.077]
[1723710889166,0.09378638,58245.0,58244.0,0.077]
[1723710889368,0.09978638,58245.0,58244.0,0.077]
[1723710890072,0.085847,58241.0,58240.0,0.3608]
[1723710890282,0.3608,58242.0,58236.0,0.0778]
[1723710890974,0.085851,58238.0,58236.0,0.163654]
[1723710891177,0.3608,58242.0,58236.0,0.163654]
[1723710891376,0.001,58241.0,58240.0,0.001]
[1723710892972,0.001,58241.0,58240.0,0.004]
[1723710893170,0.086847,58241.0,58240.0,0.004]
[1723710893685,0.085847,58241.0,58240.0,0.003]
[1723710894370,0.171694,58241.0,58240.0,0.003]
[1723710894576,0.533494,58241.0,58240.0,0.004]
[1723710895379,0.533494,58241.0,58240.0,0.001]
[1723710895579,0.533494,58241.0,58235.0,0.36097386]
[1723710895580,0.171708,58236.0,58235.0,0.36097386]
[1723710895775,0.409108,58236.0,58235.0,0.36097386]
[1723710896287,0.323254,58236.0,58235.0,0.36097386]
[1723710896979,0.323254,58236.0,58235.0,0.36397386]
[1723710897389,0.324254,58236.0,58235.0,0.36397386]
[1723710897980,0.086854,58236.0,58235.0,0.36397386]
[1723710898293,0.09495998,58236.0,58235.0,0.36397386]
[1723710901283,0.09495998,58236.0,58235.0,0.00317386]
[1723710901284,0.41821398,58236.0,58235.0,0.00317386]
[1723710901585,0.33235998,58236.0,58235.0,0.00317386]
[1723710901989,0.41821398,58236.0,58235.0,0.00317386]
[1723710902186,0.33235998,58236.0,58235.0,0.00317386]
[1723710903284,0.09495998,58236.0,58235.0,0.00317386]
[1723710904775,0.09495998,58236.0,58235.0,0.36397386]
[1723710905585,0.00136,58246.0,58235.0,2.21802308]
[1723710905780,0.05138307,58262.0,58245.0,0.2374]
[1723710905977,0.00900029,58265.0,58257.0,0.3608]
[1723710906178,0.00812029,58265.0,58264.0,0.085813]
[1723710906391,0.085803,58271.0,58263.0,0.3608]
[1723710906588,0.085804,58270.0,58267.0,0.085807]
[1723710906785,0.08590712,58270.0,58269.0,0.3608]
[1723710907190,0.00010312,58270.0,58269.0,0.446605]
[1723710907579,0.00010312,58270.0,58269.0,0.3608]